fUST/lending_fUST_20240622
["ID","MTS","AMOUNT","RATE_DAILY","PERIOD"]
[330134274,1719031845805,-159.56278405,0.00021505,2]
[330134275,1719031845814,-2223.85633956,0.00021917,2]
[330134276,1719031845823,-500.0,0.00021917,2]
[330134277,1719031845833,-500.0,0.00021917,2]
[330134278,1719031845842,-500.0,0.00021917,2]
[330134279,1719031845851,-500.0,0.00021917,2]
[330134280,1719031845860,-500.0,0.00021917,2]
[330134281,1719031845870,-1141.97868114,0.00021917,2]
[330134282,1719031845883,-819.39131886,0.00021917,2]
[330134283,1719031845893,-500.0,0.00021917,2]
[330134284,1719031845902,-1483.23,0.00021917,2]
[330134285,1719031845914,-691.06,0.00021917,2]
[330134286,1719031845923,-500.0,0.00021917,2]
[330134287,1719031845932,-2504.73,0.00021917,2]
[330134288,1719031845941,-500.0,0.00021917,2]
[330134289,1719031845951,-500.0,0.00021917,2]
[330134290,1719031845960,-503.30912165,0.00021917,2]
[330134291,1719031845969,-564.35717179,0.00021917,2]
[330134292,1719031845979,-2187.01,0.00021917,2]
[330134293,1719031845988,-500.0,0.00021917,2]
[330134294,1719031845998,-500.0,0.00021917,2]
[330134295,1719031846007,-500.0,0.00021917,2]
[330134296,1719031846017,-500.0,0.00021917,2]
[330134297,1719031846026,-151.0,0.00021917,2]
[330134298,1719031846035,-208.422994,0.00021917,2]
[330134299,1719031846044,-500.0,0.00021917,2]
[330134300,1719031846053,-501.25782223,0.00021917,2]
[330134301,1719031846062,-500.0,0.00021917,2]
[330134302,1719031846071,-500.0,0.00021917,2]
[330134303,1719031846080,-500.0,0.00021917,2]
[330134304,1719031846089,-500.0,0.00021917,2]
[330134305,1719031846098,-500.0,0.00021917,2]
[330134306,1719031846107,-500.0,0.00021917,2]
[330134307,1719031846116,-500.0,0.00021917,2]
[330134308,1719031846125,-500.0,0.00021917,2]
[330134309,1719031846134,-2225.56,0.00021917,2]
[330134311,1719031846143,-500.0,0.00021917,2]
[330134313,1719031846152,-503.18438092,0.00021917,2]
[330134314,1719031846161,-500.0,0.00021917,2]
[330134316,1719031846170,-503.66179978,0.00021917,2]
[330134318,1719031846179,-500.0,0.00021917,2]
[330134320,1719031846188,-500.0,0.00021917,2]
[330134322,1719031846197,-500.0,0.00021917,2]
[330134324,1719031846206,-500.0,0.00021917,2]
[330134325,1719031846215,-500.0,0.00021917,2]
[330134326,1719031846224,-500.0,0.00021917,2]
[330134327,1719031846233,-402.16576288,0.00021917,2]
[330134328,1719031846243,-509.61222704,0.00021917,2]
[330134329,1719031846252,-544.69,0.00021917,2]
[330134330,1719031846261,-500.0,0.00021917,2]
[330134331,1719031846270,-990.41,0.00021917,2]
[330134332,1719031846279,-12405.95818945,0.00021917,2]
[330134333,1719031846297,-808.88059479,0.00021917,2]
[330134335,1719031846883,-525.29379384,0.00020859,2]
[330134336,1719031846892,-14086.7612139,0.00021917,2]
[330134444,1719033038127,-500.0,0.00017533,2]
[330134445,1719033038137,-20000.0,0.00018,2]
[330134446,1719033038147,-3519.39233141,0.00018482,2]
[330134447,1719033038156,-24900.0,0.00018483,2]
[330134448,1719033038166,-247.65743864,0.00018529,2]
[330134449,1719033038177,-500.0,0.00018629,2]
[330134450,1719033038186,-3126.01610644,0.00018903,2]
[330134451,1719033038196,-500.0,0.00019178,2]
[330134452,1719033038206,-500.0,0.00019178,2]
[330134453,1719033038216,-500.0,0.00019178,2]
[330134454,1719033038225,-500.0,0.00019178,2]
[330134456,1719033038235,-502.98055054,0.00019178,2]
[330134457,1719033038245,-500.0,0.00019178,2]
[330134459,1719033038255,-500.0,0.00019178,2]
[330134461,1719033038265,-500.0,0.00019178,2]
[330134463,1719033038275,-500.0,0.00019178,2]
[330134464,1719033038284,-368.09393043,0.00019178,2]
[330134465,1719033038293,-500.0,0.00019178,2]
[330134466,1719033038303,-500.0,0.00019178,2]
[330134467,1719033038312,-500.0,0.00019178,2]
[330134468,1719033038322,-500.0,0.00019178,2]
[330134469,1719033038331,-500.0,0.00019178,2]
[330134470,1719033038340,-500.0,0.00019178,2]
[330134471,1719033038350,-500.0,0.00019178,2]
[330134472,1719033038359,-500.0,0.00019178,2]
[330134473,1719033038369,-500.0,0.00019178,2]
[330134474,1719033038378,-500.0,0.00019178,2]
[330134475,1719033038387,-500.0,0.00019178,2]
[330134476,1719033038396,-500.0,0.00019178,2]
[330134477,1719033038405,-500.0,0.00019178,2]
[330134478,1719033038414,-500.0,0.00019178,2]
[330134479,1719033038424,-500.0,0.00019178,2]
[330134480,1719033038433,-500.0,0.00019178,2]
[330134481,1719033038443,-500.0,0.00019178,2]
[330134482,1719033038452,-500.0,0.00019178,2]
[330134483,1719033038462,-500.0,0.00019178,2]
[330134484,1719033038472,-500.0,0.00019178,2]
[330134485,1719033038481,-500.0,0.00019178,2]
[330134486,1719033038491,-500.0,0.00019178,2]
[330134487,1719033038502,-500.0,0.00019178,2]
[330134488,1719033038511,-500.0,0.00019178,2]
[330134489,1719033038520,-300.36959231,0.00019178,2]
[330134490,1719033038530,-500.0,0.00019178,2]
[330134491,1719033038539,-500.0,0.00019178,2]
[330134492,1719033038549,-500.0,0.00019178,2]
[330134493,1719033038558,-500.0,0.00019178,2]
[330134494,1719033038568,-500.0,0.00019178,2]
[330134495,1719033038578,-500.0,0.00019178,2]
[330134496,1719033038587,-500.0,0.00019178,2]
[330134497,1719033038597,-500.0,0.00019178,2]
[330134498,1719033038606,-500.0,0.00019178,2]
[330134499,1719033038616,-500.0,0.00019178,2]
[330134500,1719033038625,-500.0,0.00019178,2]
[330134501,1719033038634,-504.22606542,0.00019178,2]
[330134502,1719033038643,-504.22606542,0.00019178,2]
[330134503,1719033038652,-504.22606542,0.00019178,2]
[330134504,1719033038662,-504.22606542,0.00019178,2]
[330134505,1719033038671,-504.22606542,0.00019178,2]
[330134506,1719033038680,-504.22606542,0.00019178,2]
[330134507,1719033038689,-504.22606542,0.00019178,2]
[330134508,1719033038699,-504.22606542,0.00019178,2]
[330134509,1719033038708,-504.22606542,0.00019178,2]
[330134510,1719033038717,-504.22606542,0.00019178,2]
[330134511,1719033038727,-504.22606542,0.00019178,2]
[330134512,1719033038736,-504.22606542,0.00019178,2]
[330134513,1719033038746,-504.22606542,0.00019178,2]
[330134514,1719033038756,-504.22606542,0.00019178,2]
[330134515,1719033038765,-504.22606542,0.00019178,2]
[330134516,1719033038777,-504.22606542,0.00019178,2]
[330134517,1719033038787,-504.22606542,0.00019178,2]
[330134518,1719033038797,-504.22606542,0.00019178,2]
[330134519,1719033038806,-504.22606542,0.00019178,2]
[330134520,1719033038816,-504.22606542,0.00019178,2]
[330134521,1719033038825,-504.22606542,0.00019178,2]
[330134522,1719033038834,-504.22606542,0.00019178,2]
[330134523,1719033038845,-504.22606542,0.00019178,2]
[330134524,1719033038854,-504.22606542,0.00019178,2]
[330134525,1719033038863,-504.22606542,0.00019178,2]
[330134526,1719033038873,-504.22606542,0.00019178,2]
[330134527,1719033038884,-504.22606542,0.00019178,2]
[330134528,1719033038893,-504.22606542,0.00019178,2]
[330134529,1719033038903,-504.22606542,0.00019178,2]
[330134530,1719033038913,-504.22606542,0.00019178,2]
[330134531,1719033038923,-504.22606542,0.00019178,2]
[330134532,1719033038932,-504.22606542,0.00019178,2]
[330134533,1719033038942,-504.22606542,0.00019178,2]
[330134534,1719033038951,-504.22606542,0.00019178,2]
[330134535,1719033038960,-504.22606542,0.00019178,2]
[330134536,1719033038970,-504.22606542,0.00019178,2]
[330134537,1719033038979,-504.22606542,0.00019178,2]
[330134538,1719033038989,-504.22606542,0.00019178,2]
[330134539,1719033039001,-504.22606542,0.00019178,2]
[330134540,1719033039011,-504.22606542,0.00019178,2]
[330134541,1719033039020,-504.22606542,0.00019178,2]
[330134542,1719033039030,-504.22606542,0.00019178,2]
[330134543,1719033039040,-504.22606542,0.00019178,2]
[330134544,1719033039050,-504.22606542,0.00019178,2]
[330134545,1719033039060,-604.22606542,0.00019178,2]
[330134546,1719033039071,-604.22606542,0.00019178,2]
[330134547,1719033039086,-604.22606542,0.00019178,2]
[330134548,1719033039097,-604.22606542,0.00019178,2]
[330134549,1719033039107,-604.22606542,0.00019178,2]
[330134550,1719033039119,-290.93161065,0.00019178,2]
[330134551,1719033039130,-500.0,0.00019178,2]
[330134552,1719033039140,-502.36350839,0.00019178,2]
[330134553,1719033039151,-500.0,0.00019178,2]
[330134554,1719033039162,-500.0,0.00019178,2]
[330134555,1719033039172,-436.40696925,0.00019178,2]
[330134556,1719033039182,-431.84116032,0.00019178,2]
[330134557,1719033039192,-270.79078504,0.00019178,2]
[330134558,1719033039202,-500.0,0.00019178,2]
[330134559,1719033039211,-500.0,0.00019178,2]
[330134560,1719033039221,-480.19468444,0.00019178,2]
[330134561,1719033039231,-500.0,0.00019178,2]
[330134562,1719033039241,-500.0,0.00019178,2]
[330134563,1719033039251,-500.0,0.00019178,2]
[330134564,1719033039261,-500.0,0.00019178,2]
[330134565,1719033039271,-500.0,0.00019178,2]
[330134566,1719033039280,-500.0,0.00019178,2]
[330134569,1719033039290,-500.0,0.00019178,2]
[330134570,1719033039445,-500.0,0.00019178,2]
[330134571,1719033039456,-500.0,0.00019178,2]
[330134572,1719033039466,-500.0,0.00019178,2]
[330134573,1719033039476,-500.0,0.00019178,2]
[330134574,1719033039486,-516.07840612,0.00019178,2]
[330134575,1719033039496,-500.0,0.00019178,2]
[330134576,1719033039505,-500.0,0.00019178,2]
[330134577,1719033039515,-500.0,0.00019178,2]
[330134578,1719033039525,-500.0,0.00019178,2]
[330134579,1719033039535,-500.0,0.00019178,2]
[330134580,1719033039545,-500.0,0.00019178,2]
[330134581,1719033039554,-159.03956,0.00019178,2]
[330134582,1719033039564,-247.65743863,0.00019347,2]
[330134584,1719033039575,-500.0,0.00019725,2]
[330134585,1719033039585,-154.79103211,0.00019816,2]
[330134586,1719033039595,-318.2580461,0.00019817,2]
[330134587,1719033039605,-990.33586488,0.00019999,2]
[330134588,1719033039615,-247.65743863,0.00020165,2]
[330134589,1719033039624,-500.0,0.00020821,2]
[330134590,1719033039634,-292.92115938,0.00020981,2]
[330134591,1719033039644,-247.65743863,0.00020982,2]
[330134592,1719033039655,-1582.96582005,0.00020999,3]
[330134593,1719033039665,-2231.10722625,0.00021,3]
[330134594,1719033039675,-1557.23,0.00021,5]
[330134595,1719033039684,-292.90827578,0.00021093,2]
[330134596,1719033039695,-750.0,0.00021096,2]
[330134597,1719033039704,-153.0,0.00021096,2]
[330134598,1719033039714,-153.0,0.00021096,2]
[330134599,1719033039724,-175.93554965,0.00021096,2]
[330134600,1719033039734,-457.3330099,0.00021099,2]
[330134601,1719033039744,-457.3330099,0.00021099,2]
[330134602,1719033039756,-805.0,0.00021125,2]
[330134603,1719033039766,-281.0,0.00021125,2]
[330134604,1719033039775,-4837.64567885,0.0002136,2]
[330134605,1719033039785,-153.243,0.00021361,2]
[330134606,1719033039795,-1752.0,0.00021361,2]
[330134607,1719033039804,-4837.64567885,0.00021441,2]
[330134608,1719033039813,-153.0,0.00021644,2]
[330134609,1719033039823,-805.0,0.00021695,2]
[330134610,1719033039832,-281.0,0.00021695,2]
[330134611,1719033039841,-247.65743863,0.000218,2]
[330134612,1719033039850,-2000.0,0.00021816,2]
[330134613,1719033039860,-373.5640515,0.00021816,2]
[330134614,1719033039869,-154.79103211,0.00021816,2]
[330134615,1719033039879,-88888.0,0.00021817,3]
[330134616,1719033039888,-252.0,0.000219,2]
[330134617,1719033039898,-159.0395649,0.00021902,2]
[330134618,1719033039908,-500.0,0.00021917,2]
[330134619,1719033039917,-500.0,0.00021917,2]
[330134620,1719033039927,-500.0,0.00021917,2]
[330134621,1719033039936,-500.0,0.00021917,2]
[330134622,1719033039946,-1137.71576296,0.00021917,2]
[330134624,1719033039955,-1512.09749399,0.00021917,2]
[330134626,1719033039965,-260.5916005,0.00021917,2]
[330134628,1719033039974,-181.55716895,0.00021917,2]
[330134629,1719033039983,-521.50286519,0.00021917,2]
[330134630,1719033039992,-500.0,0.00021917,2]
[330134631,1719033040003,-710.06,0.00021917,2]
[330134632,1719033040012,-500.0,0.00021917,2]
[330134633,1719033040021,-502.53659017,0.00021917,2]
[330134634,1719033040030,-500.0,0.00021917,2]
[330134635,1719033040039,-500.97146155,0.00021917,2]
[330134636,1719033040048,-500.0,0.00021917,2]
[330134637,1719033040058,-151.0,0.00021917,2]
[330134638,1719033040067,-166.995851,0.00021917,2]
[330134640,1719033040080,-500.0,0.00021917,2]
[330134642,1719033040091,-500.0,0.00021917,2]
[330134643,1719033040100,-500.0,0.00021917,2]
[330134644,1719033040110,-500.0,0.00021917,2]
[330134645,1719033040121,-504.92050198,0.00021917,2]
[330134646,1719033040130,-500.0,0.00021917,2]
[330134647,1719033040139,-500.0,0.00021917,2]
[330134648,1719033040148,-500.0,0.00021917,2]
[330134650,1719033040159,-500.0,0.00021917,2]
[330134651,1719033040169,-511.12575361,0.00021917,2]
[330134653,1719033040179,-500.0,0.00021917,2]
[330134654,1719033040188,-618.17,0.00021917,2]
[330134656,1719033040197,-500.0,0.00021917,2]
[330134658,1719033040207,-500.0,0.00021917,2]
[330134660,1719033040216,-500.0,0.00021917,2]
[330134661,1719033040225,-500.0,0.00021917,2]
[330134662,1719033040234,-531.47245541,0.00021917,2]
[330134663,1719033040244,-500.0,0.00021917,2]
[330134664,1719033040254,-502.77376036,0.00021917,2]
[330134665,1719033040264,-501.27219413,0.00021917,2]
[330134666,1719033040273,-151.0,0.00021917,2]
[330134667,1719033040282,-500.0,0.00021917,2]
[330134668,1719033040291,-500.0,0.00021917,2]
[330134669,1719033040300,-500.0,0.00021917,2]
[330134670,1719033040310,-925.58,0.00021917,2]
[330134671,1719033040319,-505.14737117,0.00021917,2]
[330134672,1719033040328,-201.50703042,0.00021917,2]
[330134674,1719033040337,-500.0,0.00021917,2]
[330134675,1719033040347,-500.0,0.00021917,2]
[330134677,1719033040356,-512.08848735,0.00021917,2]
[330134678,1719033040365,-533.96928085,0.00021917,2]
[330134679,1719033040375,-502.47262781,0.00021917,2]
[330134681,1719033040384,-765.23,0.00021917,2]
[330134683,1719033040394,-500.0,0.00021917,2]
[330134686,1719033040404,-508.1724559,0.00021917,2]
[330134688,1719033040413,-501.51875684,0.00021917,2]
[330134690,1719033040423,-1012.11,0.00021917,2]
[330134691,1719033040432,-500.0,0.00021917,2]
[330134692,1719033040442,-455.17938042,0.00021917,2]
[330134693,1719033040451,-500.0,0.00021917,2]
[330134694,1719033040461,-500.0,0.00021917,2]
[330134695,1719033040471,-500.0,0.00021917,2]
[330134696,1719033040480,-500.0,0.00021917,2]
[330134697,1719033040489,-500.0,0.00021917,2]
[330134698,1719033040499,-500.0,0.00021917,2]
[330134699,1719033040508,-500.0,0.00021917,2]
[330134700,1719033040517,-500.0,0.00021917,2]
[330134701,1719033040527,-500.0,0.00021917,2]
[330134702,1719033040536,-500.0,0.00021917,2]
[330134703,1719033040546,-697.83,0.00021917,2]
[330134704,1719033040555,-646.28,0.00021917,2]
[330134705,1719033040565,-523.48,0.00021917,2]
[330134706,1719033040575,-198.44920201,0.00021917,2]
[330134707,1719033040585,-500.0,0.00021917,2]
[330134708,1719033040594,-500.0,0.00021917,2]
[330134709,1719033040603,-500.0,0.00021917,2]
[330134710,1719033040613,-500.0,0.00021917,2]
[330134711,1719033040623,-151.591465,0.00021917,2]
[330134712,1719033040632,-550.9030432,0.00021917,2]
[330134713,1719033040642,-505.52,0.00021917,2]
[330134714,1719033040651,-500.0,0.00021917,2]
[330134715,1719033040661,-161.31458561,0.00021917,2]
[330134716,1719033040671,-506.06689397,0.00021917,2]
[330134717,1719033040680,-500.0,0.00021917,2]
[330134718,1719033040691,-500.05856676,0.00021917,2]
[330134719,1719033040700,-500.0,0.00021917,2]
[330134720,1719033040710,-639.09795422,0.00021917,2]
[330134721,1719033040719,-500.0,0.00021917,2]
[330134722,1719033040729,-500.0,0.00021917,2]
[330134723,1719033040738,-176.81217988,0.00021917,2]
[330134724,1719033040748,-598.15,0.00021917,2]
[330134725,1719033040757,-591.69,0.00021917,2]
[330134726,1719033040767,-522.07688274,0.00021917,2]
[330134727,1719033040776,-500.0,0.00021917,2]
[330134728,1719033040785,-500.0,0.00021917,2]
[330134729,1719033040795,-536.45,0.00021917,2]
[330134730,1719033040804,-500.0,0.00021917,2]
[330134731,1719033040813,-500.0,0.00021917,2]
[330134732,1719033040823,-500.0,0.00021917,2]
[330134733,1719033040832,-500.0,0.00021917,2]
[330134734,1719033040842,-501.13967173,0.00021917,2]
[330134735,1719033040851,-500.0,0.00021917,2]
[330134736,1719033040860,-151.00000026,0.00021917,2]
[330134737,1719033040870,-796.04,0.00021917,2]
[330134738,1719033040879,-500.0,0.00021917,2]
[330134739,1719033040889,-500.0,0.00021917,2]
[330134740,1719033040898,-500.0,0.00021917,2]
[330134741,1719033040908,-500.0,0.00021917,2]
[330134742,1719033040917,-500.0,0.00021917,2]
[330134743,1719033040927,-1174.59,0.00021917,2]
[330134744,1719033040936,-500.0,0.00021917,2]
[330134745,1719033040947,-500.0,0.00021917,2]
[330134746,1719033040957,-508.94797736,0.00021917,2]
[330134747,1719033040967,-500.0,0.00021917,2]
[330134748,1719033040979,-500.0,0.00021917,2]
[330134749,1719033040989,-500.0,0.00021917,2]
[330134750,1719033040998,-745.47,0.00021917,2]
[330134751,1719033041008,-500.0,0.00021917,2]
[330134752,1719033041018,-500.0,0.00021917,2]
[330134753,1719033041028,-500.0,0.00021917,2]
[330134754,1719033041037,-500.0,0.00021917,2]
[330134755,1719033041047,-500.0,0.00021917,2]
[330134756,1719033041056,-500.0,0.00021917,2]
[330134757,1719033041065,-500.0,0.00021917,2]
[330134758,1719033041075,-517.95624434,0.00021917,2]
[330134759,1719033041087,-500.0,0.00021917,2]
[330134760,1719033041097,-500.0,0.00021917,2]
[330134761,1719033041106,-151.0,0.00021917,2]
[330134762,1719033041116,-251.717716,0.00021917,2]
[330134763,1719033041126,-502.28082167,0.00021917,2]
[330134764,1719033041135,-500.0,0.00021917,2]
[330134765,1719033041144,-500.0,0.00021917,2]
[330134766,1719033041154,-500.0,0.00021917,2]
[330134767,1719033041168,-692.42,0.00021917,2]
[330134768,1719033041177,-662.27,0.00021917,2]
[330134769,1719033041187,-500.0,0.00021917,2]
[330134770,1719033041197,-500.0,0.00021917,2]
[330134771,1719033041207,-500.0,0.00021917,2]
[330134772,1719033041218,-500.0,0.00021917,2]
[330134773,1719033041228,-500.0,0.00021917,2]
[330134774,1719033041238,-500.0,0.00021917,2]
[330134775,1719033041248,-505.58847405,0.00021917,2]
[330134776,1719033041258,-505.14458078,0.00021917,2]
[330134777,1719033041267,-500.0,0.00021917,2]
[330134778,1719033041276,-500.0,0.00021917,2]
[330134779,1719033041287,-500.0,0.00021917,2]
[330134780,1719033041297,-500.0,0.00021917,2]
[330134781,1719033041306,-500.0,0.00021917,2]
[330134782,1719033041316,-472.04072072,0.00021917,2]
[330134783,1719033041325,-1190.11,0.00021917,2]
[330134784,1719033041334,-503.43961658,0.00021917,2]
[330134785,1719033041343,-500.0,0.00021917,2]
[330134786,1719033041352,-1055.81,0.00021917,2]
[330134787,1719033041362,-1315.61400226,0.00021917,2]
[330134829,1719033132431,224.149181,0.00023562,64]
[330134830,1719033132659,224.149181,0.00023562,70]
[330134831,1719033132872,224.149181,0.00023562,76]
[330134832,1719033133078,224.149181,0.00023562,82]
[330134833,1719033133297,224.149181,0.00023562,88]
[330134834,1719033133525,224.149181,0.00023562,95]
[330134835,1719033133748,224.149181,0.00023562,101]
[330134836,1719033133951,224.149181,0.00023562,107]
[330134837,1719033134176,224.149181,0.00023562,113]
[330134838,1719033134385,224.149181,0.00023562,120]
[330134840,1719033150526,150.5,0.00021908,62]
[330134841,1719033150780,150.5,0.00021908,62]
[330134842,1719033151440,278.83,0.00021898,62]
[330134843,1719033151468,150.5,0.00021908,62]
[330134844,1719033151670,166.68,0.00021898,62]
[330134845,1719033151747,150.5,0.00021908,62]
[330134846,1719033151783,150.5,0.00021898,62]
[330134847,1719033152524,159.67,0.00021898,62]
[330134848,1719033152553,150.5,0.00021888,62]
[330134849,1719033153082,249.55,0.00024066,62]
[330134850,1719033153439,150.5,0.00021908,62]
[330134851,1719033153550,336.0,0.00021908,62]
[330134852,1719033154037,150.5,0.00021898,62]
[330134853,1719033154164,336.0,0.00021898,62]
[330134854,1719033154567,153.07,0.00021888,62]
[330134855,1719033154759,336.0,0.00021888,62]
[330134856,1719033155438,336.0,0.00024066,62]
[330134857,1719033156017,336.0,0.00024056,62]
[330134858,1719033157792,336.0,0.00024046,62]
[330134864,1719033222501,305.66823523,0.00025394,60]
[330134866,1719033237503,305.66823523,0.00025394,60]
[330134868,1719033271421,174.0,0.00021908,62]
[330134869,1719033271733,150.5,0.00021908,62]
[330134870,1719033272255,150.5,0.00021908,62]
[330134871,1719033272370,174.0,0.00021898,62]
[330134872,1719033272458,150.5,0.00021898,62]
[330134873,1719033272519,150.5,0.00021898,62]
[330134874,1719033272557,174.0,0.00021888,62]
[330134875,1719033272784,150.5,0.00021888,62]
[330134876,1719033273035,150.5,0.00021888,62]
[330134877,1719033273085,174.0,0.00023994,62]
[330134878,1719033273511,150.5,0.00023994,62]
[330134879,1719033273586,150.5,0.00023994,62]
[330134880,1719033273651,174.0,0.00023984,62]
[330134881,1719033273906,150.5,0.00023984,62]
[330134882,1719033274058,150.5,0.00023984,62]
[330134883,1719033274175,174.0,0.00023974,62]
[330134884,1719033274405,150.5,0.00023974,62]
[330134885,1719033274682,150.5,0.00023974,62]
[330134886,1719033292771,300.0,0.00025999,60]
[330134887,1719033308705,300.0,0.00025999,60]
[330134890,1719033320655,300.0,0.00025999,60]
[330135016,1719033392004,150.5,0.00021908,62]
[330135046,1719033392770,290.67,0.00021898,62]
[330135308,1719033437573,300.0,0.00025999,60]
[330135310,1719033460970,155.986,0.00025999,60]
[330135313,1719033835076,159.25315055,0.00025394,60]
[330135314,1719033858319,160.106557,0.00023562,65]
[330135315,1719033858534,160.106557,0.00023562,74]
[330135316,1719033858735,160.106557,0.00023562,83]
[330135317,1719033859137,160.106557,0.00023562,92]
[330135318,1719033859348,160.106557,0.00023562,101]
[330135319,1719033859544,160.106557,0.00023562,110]
[330135320,1719033859740,160.106557,0.00023562,119]
[330135321,1719033878782,305.6137,0.00025999,60]
[330135322,1719034036733,621.25126786,0.000258,60]
[330135342,1719034232252,-292.92115938,0.00017176,2]
[330135344,1719034232261,-28.57884062,0.00017498,2]
[330135365,1719034238488,-428.75416928,0.00017498,2]
[330135366,1719034238498,-61.13540726,0.00018219,2]
[330135440,1719034325634,159.25315055,0.00025394,60]
[330135441,1719034381640,159.25315055,0.00022083,60]
[330135444,1719034474515,160.106557,0.00023562,61]
[330135445,1719034474753,160.106557,0.00023562,80]
[330135446,1719034474965,160.106557,0.00023562,100]
[330135447,1719034475158,160.106557,0.00023562,120]
[330135449,1719034639220,164.26953294,0.00025,60]
[330135450,1719034639636,227.46438226,0.0002,120]
[330135453,1719034866180,159.25315055,0.00025394,60]
[330135454,1719034906746,159.25315055,0.00024242,60]
[330135459,1719035191787,150.5,0.00021359,62]
[330135460,1719035192174,150.5,0.00021359,62]
[330135461,1719035192328,274.78,0.00021349,62]
[330135462,1719035192645,150.5,0.00021349,62]
[330135463,1719035193213,150.5,0.00021339,62]
[330135464,1719035193668,244.5,0.00023,62]
[330135468,1719035350568,12196.54694775,0.00015,2]
[330135469,1719035393709,159.25315055,0.00025394,60]
[330135470,1719035395497,-488.27248762,0.00014784,2]
[330135471,1719035395608,-197.8948016,0.00014784,2]
[330135472,1719035395676,-488.27248762,0.00014784,2]
[330135473,1719035395758,-488.27248762,0.00014784,2]
[330135508,1719035433674,-262.11600934,0.00015,2]
[330135509,1719035433684,-39.88399066,0.00015,2]
[330135510,1719035433698,-1472.21350333,0.00015,2]
[330135511,1719035433707,-965.22845179,0.00017433,2]
[330135512,1719035433717,-500.0,0.00017533,2]
[330135513,1719035433727,-20000.0,0.00018,2]
[330135514,1719035433737,-155.22885084,0.00018187,2]
[330135515,1719035433747,-271.70095132,0.0001819,2]
[330135516,1719035433756,-728.05775524,0.00018502,2]
[330135517,1719035433767,-500.0,0.00018629,2]
[330135518,1719035433776,-3126.01610644,0.00018707,2]
[330135519,1719035433785,-305.32953539,0.00018841,2]
[330135520,1719035433798,-490.14773198,0.00018903,2]
[330135521,1719035433810,-525.29379384,0.00019007,2]
[330135522,1719035433821,-152.01043671,0.00019178,2]
[330135523,1719035433831,-500.0,0.00019178,2]
[330135524,1719035433841,-500.0,0.00019178,2]
[330135525,1719035433851,-500.0,0.00019178,2]
[330135526,1719035433862,-500.0,0.00019178,2]
[330135527,1719035433872,-500.0,0.00019178,2]
[330135528,1719035433882,-500.0,0.00019178,2]
[330135529,1719035433891,-500.0,0.00019178,2]
[330135530,1719035433901,-500.0,0.00019178,2]
[330135531,1719035433911,-500.0,0.00019178,2]
[330135532,1719035433922,-500.0,0.00019178,2]
[330135533,1719035433931,-500.0,0.00019178,2]
[330135534,1719035433940,-500.0,0.00019178,2]
[330135535,1719035433950,-500.0,0.00019178,2]
[330135536,1719035433960,-500.0,0.00019178,2]
[330135537,1719035433970,-500.0,0.00019178,2]
[330135538,1719035433981,-500.0,0.00019178,2]
[330135539,1719035433990,-500.0,0.00019178,2]
[330135540,1719035434000,-500.0,0.00019178,2]
[330135541,1719035434010,-500.0,0.00019178,2]